bitfinex/quotes_ETHUSD_20251012
["timestamp","ask_amount","ask_price","bid_price","bid_amount"]
[1760259280118,9.16577629,3836.6,3836.5,1e-08]
[1760259280615,9.60277629,3836.6,3836.5,1e-08]
[1760259280803,11.08432032,3836.6,3836.5,1e-08]
[1760259281188,11.18889534,3836.6,3836.5,1e-08]
[1760259283194,6.11259353,3836.6,3836.5,1e-08]
[1760259283398,5.0982495,3836.6,3836.5,1e-08]
[1760259285185,4.99367448,3836.6,3836.5,1e-08]
[1760259285825,4.52647448,3836.6,3836.5,1e-08]
[1760259286027,4.99367448,3836.6,3836.5,1e-08]
[1760259289931,4.52647448,3836.6,3836.5,1e-08]
[1760259290102,4.99367448,3836.6,3836.5,1e-08]
[1760259292629,2.60647448,3836.6,3836.5,1e-08]
[1760259295261,0.4613,3837.5,3836.5,1e-08]
[1760259295464,3.39022098,3837.2,3836.7,4.63930181]
[1760259295663,2.60608496,3837.2,3836.7,19.13930181]
[1760259295850,2.60614852,3837.1,3836.7,14.5]
[1760259296050,2.60607107,3837.2,3836.7,14.5]
[1760259296388,2.60607107,3837.2,3836.7,16.28311906]
[1760259296758,0.001,3837.3,3836.7,16.28311906]
[1760259296759,2.60616252,3837.1,3836.7,16.28311906]
[1760259298278,0.001,3837.3,3836.7,16.28311906]
[1760259298473,2.60606796,3837.2,3836.7,16.28311906]
[1760259298872,2.6061394,3837.1,3836.7,16.28311906]
[1760259299088,2.6061394,3837.1,3836.7,1.78311906]
[1760259299290,2.6061394,3837.1,3836.5,3.33113212]
[1760259299506,2.6060712,3837.2,3836.6,2.60646888]
[1760259299645,2.60613881,3837.1,3836.5,3.33113495]
[1760259300009,2.60613881,3837.1,3836.5,0.72459987]
[1760259300279,2.60613881,3837.1,3836.5,3.33114207]
[1760259300907,2.60620937,3837.0,3836.5,0.72459987]
[1760259301108,2.60620937,3837.0,3836.5,1e-08]
[1760259301472,2.60614906,3837.1,3836.5,1e-08]
[1760259301786,2.60629392,3836.9,3836.5,1e-08]
[1760259301991,2.60621566,3837.0,3836.5,1e-08]
[1760259303069,2.60615671,3837.1,3836.5,1e-08]
[1760259303404,2.60620933,3837.0,3836.6,0.26065981]
[1760259304008,2.6061462,3837.1,3836.6,0.26065981]
[1760259304297,2.60621767,3837.0,3836.6,0.26065981]
[1760259306182,2.73574915,3837.1,3836.7,4.237]
[1760259306884,0.001,3837.0,3836.7,4.237]
[1760259307402,0.001,3837.0,3836.9,2.60627068]
[1760259307579,0.001,3837.0,3836.9,2.73587068]
[1760259307993,0.001,3837.0,3836.9,2.60627068]
[1760259308301,0.001,3837.0,3836.9,2.73587068]
[1760259312311,0.001,3837.0,3836.9,6.97287068]
[1760259312494,0.001,3837.0,3836.9,9.32952085]
[1760259315658,0.001,3837.0,3836.9,6.72325017]
[1760259315870,0.001,3837.0,3836.9,12.68651323]
[1760259316020,0.001,3837.0,3836.9,6.84327068]
[1760259316221,0.001,3837.0,3836.9,4.237]
[1760259316661,2.60720276,3837.0,3836.9,4.237]
[1760259316828,0.26182028,3837.0,3836.9,4.237]
[1760259317024,0.001,3837.0,3836.9,4.237]
[1760259319958,0.001,3837.0,3836.9,6.84327068]
[1760259320459,0.001,3837.0,3836.9,12.68651323]
[1760259322923,0.001,3837.3,3837.0,6.84219678]
[1760259323252,0.001,3837.3,3837.2,2.60606692]
[1760259323970,0.001,3837.3,3837.2,22.0080601]
[1760259324263,0.001,3837.3,3837.2,12.5320601]
[1760259324622,0.001,3837.4,3837.3,5.159599]
[1760259325959,0.001,3837.4,3837.3,5.289199]
[1760259326675,0.001,3837.4,3837.3,11.13244155]
[1760259326961,0.001,3837.4,3837.3,12.92002714]
[1760259329633,0.001,3838.1,3838.0,2.60552371]
[1760259329864,0.001,3838.1,3838.0,16.04812371]
[1760259330452,0.001,3838.1,3838.0,11.5226]
[1760259330871,0.001,3838.1,3838.0,14.12812371]
[1760259331097,0.001,3838.1,3838.0,15.80149258]
[1760259332483,0.001,3838.1,3838.0,0.1296]
[1760259338110,0.001,3838.1,3838.0,4.3626]
[1760259339615,0.001,3838.1,3838.0,0.1296]
[1760259339780,0.001,3838.1,3837.0,2.60815793]
[1760259339781,2.60561011,3837.9,3837.0,2.60815793]
[1760259340118,0.1306,3838.1,3837.5,0.1296]
[1760259340317,2.60559721,3837.9,3837.5,0.1296]
[1760259340884,2.60554912,3838.0,3837.5,0.1296]
[1760259341382,2.7360569,3838.1,3837.5,2.73541775]
[1760259341789,2.7360569,3838.1,3837.5,0.1296]
[1760259342093,2.73605765,3838.1,3837.5,0.1296]
[1760259342297,2.60560375,3837.9,3837.5,0.1296]
[1760259342496,2.60552371,3838.0,3837.5,0.1296]
[1760259342711,2.60560073,3837.9,3837.5,0.1296]
[1760259346529,2.60554811,3838.0,3837.6,4.233]
[1760259346739,0.1306,3838.1,3837.6,4.233]
[1760259346929,2.73608063,3838.1,3837.6,4.233]
[1760259347232,0.1306,3838.1,3837.6,4.233]
[1760259347734,0.001,3838.1,3837.8,2.60565949]
[1760259347933,0.001,3838.1,3837.8,2.73525949]
[1760259348230,0.001,3838.1,3837.9,14.5]
[1760259348802,0.001,3838.1,3837.9,17.10557299]
[1760259349646,0.001,3838.1,3838.0,2.60552371]
[1760259349846,0.001,3838.1,3838.0,1.98408493]
[1760259350146,0.001,3838.1,3838.0,4.58960864]
[1760259351017,0.001,3838.1,3838.0,4.71920864]
[1760259351216,0.001,3838.1,3838.0,19.21920864]
[1760259355167,0.001,3838.1,3838.0,21.13920864]
[1760259355866,0.001,3838.1,3838.0,25.37220864]
[1760259356845,0.001,3838.1,3838.0,25.61601589]
[1760259357968,0.001,3838.1,3838.0,21.38301589]
[1760259361491,0.001,3838.1,3838.0,26.01641348]
[1760259361653,0.001,3838.1,3838.0,26.01541348]
[1760259363295,0.001,3838.1,3838.0,25.77160623]
[1760259368813,0.001,3838.8,3838.6,4.231]
[1760259369017,0.001,3838.8,3838.7,4.231]
[1760259371609,2.60538794,3838.2,3838.0,18.731]
[1760259371817,3.06355582,3838.1,3837.8,0.002]
[1760259371990,4.63339759,3838.5,3837.8,0.002]
[1760259371991,0.4581,3838.2,3837.8,0.002]
[1760259372187,2.6054993,3838.1,3837.8,0.002]
[1760259372378,2.60532641,3838.3,3837.8,0.002]
[1760259372578,2.60529871,3838.4,3837.8,0.002]
[1760259372813,2.60535042,3838.3,3837.8,0.002]
[1760259373014,2.60532006,3838.3,3837.8,0.002]
[1760259373178,0.7837656,3838.4,3837.8,0.002]
[1760259373381,2.60532125,3838.3,3837.8,14.502]
[1760259374312,0.7837656,3838.4,3837.9,7.23893108]
[1760259374501,2.60599081,3838.8,3838.2,4.63339759]
[1760259374715,2.60505546,3838.7,3838.2,4.63339759]
[1760259375015,2.60512765,3838.6,3837.9,7.23897447]
[1760259375183,2.60519108,3838.5,3837.9,7.23897447]
[1760259376123,2.6052897,3838.4,3837.8,14.502]
[1760259376419,2.60512748,3838.6,3837.8,14.502]
[1760259376420,2.60518431,3838.5,3837.8,14.502]
[1760259376622,2.60539541,3838.2,3837.8,14.502]
[1760259377224,2.60534616,3838.3,3837.8,0.002]
[1760259377428,2.60526601,3838.4,3837.8,0.002]
[1760259377794,2.60526601,3838.4,3837.8,2.60765008]
[1760259379230,2.60526601,3838.4,3837.9,0.002]
[1760259380105,2.60620459,3838.5,3837.9,0.002]
[1760259380607,2.60525872,3838.4,3837.9,0.002]
[1760259381824,2.60620925,3838.5,3837.9,0.1316]
[1760259382124,2.60620925,3838.5,3837.9,2.73718445]
[1760259382428,2.60620925,3838.5,3838.0,14.5]
[1760259382591,0.001,3838.5,3838.0,14.5]
[1760259383656,2.60525218,3838.4,3838.0,14.5]
[1760259384744,2.60532035,3838.3,3838.0,14.5]
[1760259384940,0.001,3838.5,3838.0,14.5]
[1760259384941,2.60527731,3838.4,3838.0,14.5]
[1760259385244,2.60538794,3838.2,3838.1,4.231]
[1760259385545,3.63189195,3838.2,3838.1,4.231]
[1760259386444,3.06478794,3838.2,3838.1,4.231]
[1760259386622,2.60538794,3838.2,3838.1,4.231]
[1760259387410,3.06478794,3838.2,3838.1,4.231]
[1760259390246,3.04618794,3838.2,3838.1,4.231]
[1760259390548,2.60552371,3838.0,3837.9,0.002]
[1760259390755,2.73512371,3838.0,3837.9,0.002]
[1760259391538,3.17592371,3838.0,3837.9,0.002]
[1760259393238,3.83243778,3838.0,3837.9,0.002]
[1760259394040,0.1296,3838.0,3837.9,0.002]
[1760259394385,2.73512371,3838.0,3837.9,0.002]
[1760259394561,0.1296,3838.0,3837.9,0.002]
[1760259395075,2.73512371,3838.0,3837.9,0.002]
[1760259399985,2.60552371,3838.0,3837.9,0.002]
[1760259401944,0.4408,3838.0,3837.9,0.002]
[1760259402072,2.60552371,3838.0,3837.9,0.002]
[1760259403973,2.60542981,3838.2,3837.9,0.002]
[1760259404405,2.60533957,3838.3,3837.9,0.002]
[1760259404904,0.001,3838.5,3837.9,4.63539759]
[1760259405409,2.60526485,3838.4,3837.9,19.13539759]
[1760259406109,0.001,3838.5,3837.9,14.502]
[1760259406314,2.60539647,3838.2,3837.9,14.502]
[1760259406490,2.60545701,3838.1,3837.9,14.502]
[1760259406665,2.60532006,3838.3,3837.9,0.002]
[1760259406872,3.61806853,3838.3,3837.9,0.002]
[1760259407072,2.60541532,3838.2,3837.9,0.002]
[1760259407571,2.60551794,3838.1,3837.9,0.002]
[1760259407901,2.60546877,3838.1,3837.9,0.002]
[1760259408106,2.60540868,3838.2,3837.9,0.002]
[1760259408298,3.17126564,3838.2,3837.9,0.002]
[1760259408606,2.60540868,3838.2,3837.9,0.002]
[1760259409102,2.60547369,3838.1,3837.9,0.002]
[1760259409469,2.60541009,3838.2,3837.9,0.002]
[1760259409674,2.60547077,3838.1,3837.9,0.002]
[1760259413009,2.60540497,3838.2,3837.9,0.002]
[1760259413886,2.60534257,3838.3,3837.9,0.002]
[1760259415105,2.60539742,3838.2,3837.9,0.002]
[1760259415276,2.60539742,3838.2,3838.0,4.231]
[1760259415688,2.60539742,3838.2,3838.1,4.231]
[1760259416086,2.60539742,3838.2,3837.9,0.002]
[1760259417311,2.60534532,3838.3,3837.9,0.002]
[1760259417678,2.60539614,3838.2,3837.9,0.002]
[1760259417877,2.60534427,3838.3,3837.9,0.002]
[1760259418115,0.001,3838.5,3838.2,7.23875054]
[1760259418336,0.001,3838.5,3838.4,2.60525218]
[1760259418494,0.001,3838.5,3838.4,2.73485218]
[1760259419132,0.001,3838.5,3838.4,21.86824977]
[1760259419329,0.001,3838.5,3838.4,24.31560802]
[1760259419521,0.001,3838.5,3838.4,17.07695825]
[1760259419809,0.001,3838.5,3838.4,14.5]
[1760259420518,0.001,3838.5,3838.2,0.1296]
[1760259421012,0.001,3838.5,3838.2,4.76299759]
[1760259421508,0.001,3838.5,3838.3,5.83723835]
[1760259422008,0.001,3838.5,3838.2,2.73496856]
[1760259422009,0.001,3838.5,3838.4,14.5]
[1760259423916,0.001,3838.5,3838.4,18.95835718]
[1760259426907,0.001,3838.5,3838.4,19.59195718]
[1760259428105,0.001,3838.5,3838.4,16.223505]
[1760259428307,0.001,3838.5,3837.9,0.69903265]
[1760259428308,0.001,3838.5,3838.1,0.1296]
[1760259428546,2.60618728,3838.5,3838.1,0.1296]
[1760259428733,2.60618728,3838.5,3838.2,14.5]
[1760259430144,2.60525584,3838.4,3838.2,14.5]
[1760259430439,2.60532006,3838.3,3838.2,14.5]
[1760259431207,0.001,3838.5,3838.2,14.5]
[1760259431208,2.60527922,3838.4,3838.2,14.5]
[1760259432511,2.60532006,3838.3,3837.9,0.002]
[1760259432722,2.60552371,3838.0,3837.9,0.002]
[1760259433948,3.07612371,3838.0,3837.9,0.002]
[1760259437460,10.83336206,3838.0,3837.9,0.002]
[1760259439529,4.52559159,3837.9,3837.8,1e-08]
[1760259439860,6.55933014,3837.9,3837.8,1e-08]
[1760259440060,7.02993014,3837.9,3837.8,1e-08]
[1760259440635,4.52586319,3837.5,3837.4,1e-08]
[1760259440836,10.36310154,3837.5,3837.4,1e-08]
[1760259441041,12.39116101,3837.5,3837.4,1e-08]
[1760259441922,13.12930706,3837.5,3837.4,1e-08]
[1760259442348,3.23973484,3837.1,3837.0,1e-08]
[1760259442661,10.99697319,3837.1,3837.0,1e-08]
[1760259442960,11.46757319,3837.1,3837.0,1e-08]
[1760259443165,12.61696853,3837.1,3837.0,1e-08]
[1760259443858,12.72153289,3837.1,3837.0,1e-08]
[1760259447261,3.2402783,3836.3,3836.2,1e-08]
[1760259447431,10.99751665,3836.3,3836.2,1e-08]
[1760259447625,12.14995634,3836.3,3836.2,1e-08]
[1760259448085,5.16061809,3835.8,3835.7,1e-08]
[1760259448233,10.99785644,3835.8,3835.7,1e-08]
[1760259448556,11.43715644,3835.8,3835.7,1e-08]
[1760259448757,12.22164347,3835.8,3835.7,1e-08]
[1760259449064,13.72620136,3835.8,3835.7,1e-08]
[1760259454581,10.99812833,3835.4,3833.5,0.1304]
[1760259454987,11.43742833,3835.4,3833.5,0.1304]
[1760259455467,12.22203435,3835.4,3833.5,0.1304]
[1760259455868,12.22203435,3835.4,3833.6,2.60845399]
[1760259456380,12.22203435,3835.4,3833.5,2.73896081]
[1760259456894,6.384796,3835.4,3833.5,5.83723835]
[1760259457056,7.54471745,3835.4,3833.9,2.73870451]
[1760259457255,13.3819558,3835.4,3833.9,2.73870451]
[1760259457466,7.54471745,3835.4,3833.9,0.1304]
[1760259458103,7.54471745,3835.4,3833.9,2.73870569]
[1760259458344,7.54471745,3835.4,3833.9,0.1304]
[1760259458456,7.54471745,3835.4,3833.9,2.73870407]
[1760259459083,2.7375038,3834.5,3833.9,2.67110407]
[1760259459360,0.5689,3834.5,3833.9,0.1304]
[1760259459583,1.92,3834.2,3833.9,0.1304]
[1760259460604,1.92,3834.3,3833.9,0.1304]
[1760259461976,0.5689,3834.5,3833.9,2.73870418]
[1760259461977,2.0496,3834.5,3833.9,2.73870418]
[1760259462184,2.0496,3834.5,3833.9,2.73866342]
[1760259462384,0.1296,3834.7,3834.1,0.1304]
[1760259462560,2.73741912,3834.7,3834.1,0.1304]
[1760259462762,2.60789111,3834.6,3833.5,2.60851585]
[1760259462999,0.1296,3834.5,3833.9,0.1304]
[1760259463191,2.73752051,3834.5,3833.9,0.1304]
[1760259463896,2.73752051,3834.5,3833.9,2.73870808]
[1760259464389,2.73752051,3834.5,3834.0,0.002]
[1760259464963,0.4393,3834.4,3834.0,0.002]
[1760259465163,2.60804925,3834.3,3834.0,0.002]
[1760259465369,2.60817401,3834.1,3834.0,0.002]
[1760259465561,2.73857401,3834.1,3834.0,0.002]
[1760259466007,3.20207401,3834.1,3834.0,0.002]
[1760259466623,5.12207401,3834.1,3834.0,0.002]
[1760259468340,5.12207401,3834.1,3834.0,0.001]
[1760259468893,4.65857401,3834.1,3834.0,0.001]
[1760259469423,5.12207401,3834.1,3834.0,0.001]
[1760259470300,3.20207401,3834.1,3834.0,0.001]
[1760259473846,3.81485949,3834.1,3834.0,0.001]
[1760259474050,3.94525949,3834.1,3834.0,0.001]
[1760259474360,0.1304,3834.1,3834.0,0.001]
[1760259474563,3.20207401,3834.1,3834.0,0.001]
[1760259474715,5.12207401,3834.1,3834.0,0.001]
[1760259477238,4.65857401,3834.1,3834.0,0.001]
[1760259477412,5.10977401,3834.1,3834.0,0.001]
[1760259481130,0.1304,3834.1,3834.0,0.001]
[1760259481350,2.60790194,3834.5,3834.0,0.001]
[1760259481519,2.60811184,3834.2,3834.0,0.001]
[1760259481715,2.60817401,3834.1,3834.0,0.001]
[1760259482054,3.05937401,3834.1,3834.0,0.001]
[1760259482428,9.6254849,3834.1,3834.0,0.001]
[1760259482649,10.4102038,3834.1,3834.0,0.001]
[1760259482858,11.71202903,3834.1,3834.0,0.001]
[1760259485620,7.06691814,3834.1,3834.0,0.001]
[1760259485952,5.76509291,3834.1,3834.0,0.001]
[1760259486253,10.4102038,3834.1,3834.0,0.001]
[1760259489376,5.31389291,3834.1,3834.0,0.001]
[1760259489560,4.52917401,3834.1,3834.0,0.001]
[1760259489954,4.63380319,3834.1,3834.0,0.001]
[1760259490573,5.08500319,3834.1,3834.0,0.001]
[1760259490778,4.63380319,3834.1,3834.0,0.001]
[1760259492980,0.10562918,3834.1,3834.0,0.001]
[1760259493279,0.001,3834.1,3834.0,3.07385313]
[1760259494654,0.001,3834.1,3834.0,17.57385313]
[1760259495749,0.001,3834.1,3834.0,17.42385313]
[1760259496160,0.001,3834.1,3834.0,14.96461109]
[1760259496493,0.001,3834.1,3834.0,14.5]
[1760259496702,0.001,3834.1,3834.0,17.10824204]
[1760259497762,0.001,3834.1,3834.0,21.75335293]
[1760259500001,0.001,3834.1,3834.0,21.75535293]
[1760259503073,0.001,3834.1,3834.0,21.88575293]
[1760259503278,0.001,3834.1,3834.0,24.33516516]
[1760259507612,0.001,3834.1,3834.0,19.69005427]
[1760259509477,0.001,3834.1,3834.0,23.92105427]
[1760259511316,0.001,3834.1,3834.0,19.69005427]
[1760259512518,0.001,3834.1,3834.0,23.92105427]
[1760259512714,0.001,3834.1,3834.0,19.69005427]
[1760259519935,0.001,3834.1,3834.0,0.002]
[1760259520139,9.6027849,3834.1,3834.0,0.002]
[1760259520294,9.7323849,3834.1,3834.0,0.002]
[1760259520491,5.08727401,3834.1,3834.0,0.002]
[1760259520701,4.65877401,3834.1,3834.0,0.002]
[1760259521235,10.50191919,3834.1,3834.0,0.002]
[1760259523995,15.14703008,3834.1,3834.0,0.002]
[1760259524931,4.52844614,3833.7,3833.6,1e-08]
[1760259525232,4.52844614,3833.7,3833.1,0.002]
[1760259525233,2.60878639,3833.2,3833.1,1e-08]
[1760259525438,4.52885445,3833.1,3833.0,0.002]
[1760259525637,9.62136534,3833.1,3833.0,0.002]
[1760259525797,2.60979041,3831.8,3830.8,2.61041439]
[1760259526013,2.60979041,3831.8,3831.2,14.5]
[1760259526218,2.60969069,3831.9,3831.3,0.0022]
[1760259526555,4.64511089,3832.3,3831.3,0.0022]
[1760259526556,2.60946401,3832.3,3831.4,6.09533089]
[1760259526855,1.92,3832.9,3832.1,2.60953524]
[1760259527042,4.52900168,3832.9,3832.2,0.0022]
[1760259527242,2.60906713,3832.8,3832.0,7.25469213]
[1760259527547,2.60903449,3832.9,3832.2,14.5]
[1760259527749,2.60903449,3832.9,3832.3,2.175464]
[1760259527954,4.52894288,3833.0,3832.3,4.78485746]
[1760259528320,2.60900143,3832.9,3832.3,2.175464]
[1760259528519,2.60893734,3833.0,3832.3,2.175464]
[1760259528947,2.60893734,3833.0,3832.3,4.78484851]
[1760259529616,2.60893192,3833.0,3832.4,1.50489589]
[1760259530157,2.73933192,3833.0,3832.4,1.50489589]
[1760259530346,1.92,3832.9,3832.4,1.50489589]
[1760259530548,1.92,3832.9,3832.3,4.91524028]
[1760259530761,1.92,3832.9,3832.3,2.73977628]
[1760259531055,1.92,3832.9,3832.4,14.5]
[1760259531763,1.92,3832.9,3832.4,14.5022]
[1760259532769,2.60899657,3832.9,3832.4,14.5042]
[1760259532934,2.60899657,3832.9,3832.4,14.502]
[1760259533568,2.60899657,3832.9,3832.4,16.2285998]
[1760259533878,0.1304,3833.0,3832.4,18.83792974]
[1760259534170,2.60852548,3833.6,3832.5,4.64731089]
[1760259534357,1.92,3833.3,3832.7,2.73948447]
[1760259534536,2.60874837,3833.3,3832.7,0.1304]
[1760259534786,2.0504,3833.4,3832.7,0.1304]
[1760259534787,2.6088042,3833.2,3832.8,14.5]
[1760259534968,2.60899058,3832.9,3832.8,14.5]
[1760259535171,2.60905865,3832.8,3832.4,0.002]
[1760259535338,0.1304,3832.8,3832.4,0.002]
[1760259535538,0.91521949,3833.1,3832.5,0.1304]
[1760259535738,2.60899058,3832.9,3832.4,0.002]
[1760259535963,2.60920669,3832.6,3832.4,0.002]
[1760259536148,2.60926288,3832.5,3832.4,0.002]
[1760259536560,3.39418094,3832.5,3832.4,0.002]
[1760259536951,10.42329183,3832.5,3832.4,0.002]
[1760259537137,7.09497392,3832.5,3832.4,0.002]
[1760259537341,5.31418094,3832.5,3832.4,0.002]
[1760259537570,5.77818094,3832.5,3832.4,0.002]
[1760259538175,5.31418094,3832.5,3832.4,0.002]
[1760259539142,5.77818094,3832.5,3832.4,0.002]
[1760259543520,11.22092873,3832.5,3832.4,0.002]
[1760259543678,12.60393995,3832.5,3832.4,0.002]
[1760259552785,11.81902189,3832.5,3832.4,0.002]
[1760259556899,6.3762741,3832.5,3832.4,0.002]
[1760259557309,4.4562741,3832.5,3832.4,0.002]
[1760259559903,6.3762741,3832.5,3832.4,0.002]
[1760259560534,2.60953524,3832.1,3832.0,1e-08]
[1760259560735,2.6104427,3830.8,3829.7,2.61116735]
[1760259560933,2.6104427,3830.8,3828.6,2.6119208]
[1760259560934,5.66324779,3831.4,3830.1,2.61089206]
[1760259561232,2.61043728,3830.8,3830.2,0.0022]
[1760259561447,2.61043728,3830.8,3830.3,0.26130921]
[1760259562104,2.61048905,3830.7,3830.3,0.26130921]
[1760259562631,2.61048905,3830.7,3830.0,2.61095238]
[1760259562833,2.61048905,3830.7,3829.9,0.0022]
[1760259563004,2.61048905,3830.7,3830.0,2.61095236]
[1760259563205,2.61048905,3830.7,3830.1,14.5]
[1760259563420,2.61048905,3830.7,3830.1,17.11089603]
[1760259563635,2.61048905,3830.7,3830.2,1.7113096]
[1760259563858,2.6104389,3830.8,3830.2,1.7113096]
[1760259564252,2.61049218,3830.7,3830.2,1.7113096]
[1760259565025,2.6105678,3830.6,3830.2,1.7113096]
[1760259565224,2.61074291,3830.4,3829.3,0.0022]
[1760259565461,2.61091215,3830.1,3829.3,2.61358641]
[1760259565669,5.87454779,3830.5,3829.3,2.61364206]
[1760259565963,2.61098886,3830.0,3829.4,14.5]
[1760259566163,2.61090578,3830.1,3829.5,1.71137017]
[1760259566351,2.6108744,3830.2,3829.5,1.71137017]
[1760259567066,2.61090943,3830.1,3829.5,1.71137017]
[1760259568161,2.61083753,3830.2,3829.5,1.71137017]
[1760259568338,3.04261827,3830.3,3829.5,1.71137017]
[1760259568539,5.44274779,3830.4,3829.8,0.002]
[1760259568753,2.61093341,3830.1,3829.8,0.002]
[1760259568957,2.61090493,3830.1,3829.8,0.002]
[1760259569268,2.6109799,3830.0,3829.8,0.002]
[1760259570339,2.61103423,3829.9,3829.8,0.002]
[1760259570737,3.79646062,3829.9,3829.8,0.002]
[1760259570942,2.61103423,3829.9,3829.8,0.002]
[1760259571371,3.04283423,3829.9,3829.8,0.002]
[1760259572884,3.04183423,3829.9,3829.8,0.002]
[1760259575796,2.61103423,3829.9,3829.8,0.002]
[1760259576873,3.04283423,3829.9,3829.8,0.002]
[1760259580307,0.2184,3830.3,3829.8,0.002]
[1760259580495,2.61080306,3830.3,3829.8,0.002]
[1760259580693,0.1304,3829.9,3829.8,0.002]
[1760259584175,0.1304,3829.9,3829.8,0.0042]
[1760259584380,0.1304,3829.9,3829.8,0.52466289]
[1760259584673,0.1304,3829.9,3829.8,0.002]
[1760259587021,0.688,3832.0,3830.0,2.61092838]
[1760259587223,5.44274779,3831.2,3830.3,0.1304]
[1760259587395,0.1304,3831.1,3830.4,1.92]
[1760259587592,0.1304,3831.1,3830.6,2.61055361]
[1760259588692,0.001,3830.7,3830.5,14.96633334]
[1760259588903,0.001,3830.7,3830.5,14.96853334]
[1760259589215,0.001,3830.7,3830.5,17.57911322]
[1760259590317,0.001,3830.7,3830.5,14.96853334]
[1760259590484,0.001,3830.7,3830.5,14.96633334]
[1760259591198,0.001,3830.7,3830.6,2.61055709]
[1760259591420,0.001,3830.7,3830.6,4.83457529]
[1760259593523,0.001,3830.7,3830.6,2.2240182]
[1760259595722,0.001,3830.7,3830.6,2.2262182]
[1760259596233,0.001,3830.7,3830.6,4.83677529]
[1760259597686,0.001,3830.7,3830.6,2.2262182]
[1760259598128,0.001,3830.7,3830.4,1.92]
[1760259598315,0.001,3830.7,3830.4,2.61068722]
[1760259598631,0.001,3830.7,3830.4,17.11288722]
[1760259598810,0.001,3830.7,3830.4,14.5]
[1760259599122,0.001,3830.7,3830.6,2.61055709]
[1760259600129,0.001,3830.7,3830.6,4.59814003]
[1760259601722,0.001,3830.7,3830.6,4.59594003]
[1760259601944,0.001,3830.7,3830.6,4.72854003]
[1760259602412,0.001,3830.7,3830.6,2.74315709]
[1760259602612,0.001,3830.7,3830.6,17.24315709]
[1760259606932,0.001,3830.7,3830.6,2.74315709]
[1760259607132,0.001,3830.7,3830.6,0.1326]
[1760259607410,4.65338289,3830.7,3829.9,0.002]
[1760259607616,0.001,3830.7,3830.3,0.1304]
[1760259607814,0.001,3830.7,3829.9,0.002]
[1760259607815,4.65238289,3830.4,3829.9,0.1324]
[1760259608050,5.08778289,3830.4,3829.9,2.0524]
[1760259608251,2.61071206,3830.4,3829.9,0.1324]
[1760259608547,0.001,3830.7,3830.6,2.61055709]
[1760259608712,0.001,3830.7,3830.6,2.61275709]
[1760259608915,0.001,3830.7,3830.6,0.66578505]
[1760259609142,0.001,3830.7,3830.6,0.1304]
[1760259609448,0.001,3830.7,3830.4,0.1304]
[1760259609614,4.65238289,3830.6,3830.4,0.1304]
[1760259609814,0.001,3830.7,3830.4,0.1304]
[1760259610026,0.001,3830.7,3830.6,2.61055709]
[1760259610543,0.001,3830.7,3830.6,0.0022]
[1760259610749,0.001,3830.7,3830.6,3.14814761]
[1760259610918,0.001,3830.7,3830.6,3.27854761]
[1760259612149,0.001,3830.7,3830.6,0.1304]
[1760259613718,0.001,3830.7,3830.6,0.1326]
[1760259614036,0.001,3830.7,3830.6,2.74315709]
[1760259615248,0.001,3830.7,3830.6,4.66315709]
[1760259615465,0.001,3830.7,3830.6,5.29675709]
[1760259615627,0.001,3830.7,3830.6,6.55273924]
[1760259616877,0.001,3830.7,3830.6,11.20512213]
[1760259617972,0.001,3830.7,3830.6,6.55273924]
[1760259619437,0.001,3830.7,3830.6,5.91913924]
[1760259622782,0.001,3830.7,3830.6,11.20512213]
[1760259623281,0.001,3830.7,3830.6,6.55273924]
[1760259626969,0.001,3830.7,3830.6,0.1304]
[1760259627373,0.1314,3830.7,3830.6,0.1304]
[1760259631511,4.78378289,3830.7,3830.6,0.1304]
[1760259632282,5.23248289,3830.7,3830.6,0.1304]
[1760259632880,4.78378289,3830.7,3830.6,0.1304]
[1760259633721,7.39427183,3830.7,3830.6,0.1304]
[1760259634476,0.1314,3830.7,3830.6,0.1304]
[1760259634783,2.74188894,3830.7,3830.6,0.1304]
[1760259635938,0.1314,3830.7,3830.6,0.1304]
[1760259636085,2.74188894,3830.7,3830.6,0.1304]
[1760259636419,2.61058356,3830.6,3830.3,0.1304]
[1760259636581,4.78378289,3830.7,3830.3,0.1304]
[1760259636910,2.61057976,3830.6,3830.3,0.1304]
[1760259637496,2.61062578,3830.5,3830.3,0.1304]
[1760259637813,3.39588489,3830.5,3830.4,14.5]
[1760259638017,0.78525911,3830.5,3830.4,14.5]
[1760259639428,3.39588435,3830.5,3830.4,14.5]
[1760259639625,8.04826724,3830.5,3830.4,14.5]
[1760259639818,0.78525911,3830.5,3830.3,0.1304]
[1760259640517,3.39589144,3830.5,3830.3,0.1304]
[1760259640716,2.6106934,3830.4,3830.3,0.1304]
[1760259640920,3.39590059,3830.5,3830.3,0.1304]
[1760259641296,0.78525911,3830.5,3830.3,0.1304]
[1760259642692,7.69797629,3830.4,3830.3,0.1304]
[1760259643033,7.26307629,3830.4,3830.3,0.1304]
[1760259644227,2.61082972,3830.2,3830.1,14.5]
[1760259644414,2.61096605,3830.0,3829.9,0.1324]
[1760259644613,7.26334894,3830.0,3829.9,0.1324]
[1760259644916,8.4836499,3830.0,3829.9,0.002]
[1760259645118,9.60613786,3830.0,3829.9,0.002]
[1760259645318,14.89212075,3830.0,3829.9,0.002]
[1760259646003,2.74143423,3829.9,3829.8,0.002]
[1760259646558,3.80993423,3829.9,3829.8,0.002]
[1760259647029,8.46231712,3829.9,3829.8,0.002]
[1760259647228,10.0624656,3829.9,3829.8,0.002]
[1760259651645,4.34158271,3829.9,3829.8,0.002]
[1760259651846,7.39381712,3829.9,3829.8,0.002]